bitfinex-derivatives/quotes_BTCF0:USTF0_20260104
["timestamp","ask_amount","ask_price","bid_price","bid_amount"]
[1767486963209,0.09946457,91246.0,91232.0,0.010965]
[1767486963603,0.09324,91245.0,91232.0,0.010965]
[1767486964512,0.09946457,91246.0,91223.0,0.01437877]
[1767486964513,0.09324,91244.0,91223.0,0.01437877]
[1767486964704,0.09946457,91243.0,91223.0,0.01437877]
[1767486964901,0.09324,91242.0,91227.0,0.010966]
[1767486965102,0.10924531,91237.0,91217.0,0.00016444]
[1767486965302,0.12021031,91236.0,91217.0,0.01113144]
[1767486965506,0.10924531,91235.0,91217.0,0.01113144]
[1767486966006,0.12006504,91231.0,91217.0,0.00016444]
[1767486966205,0.009986,91226.0,91217.0,0.00016444]
[1767486966402,0.09946457,91226.0,91217.0,0.00016444]
[1767486968814,0.09324,91230.0,91217.0,0.00016444]
[1767486970210,0.19270457,91230.0,91217.0,0.00016444]
[1767486970816,0.20367057,91230.0,91217.0,0.00016444]
[1767486971116,0.09946457,91229.0,91217.0,0.00016444]
[1767486971304,0.010966,91228.0,91217.0,0.00016444]
[1767486971506,0.09946457,91229.0,91217.0,0.00016444]
[1767486972018,0.09324,91230.0,91217.0,0.00016444]
[1767486972816,0.09324,91230.0,91209.0,0.01437877]
[1767486973117,0.2014137,91230.0,91209.0,0.12399964]
[1767486973607,0.09946457,91225.0,91210.0,0.010968]
[1767486973910,0.00016444,91227.0,91208.0,0.09340444]
[1767486974111,0.00016444,91227.0,91214.0,0.010968]
[1767486974317,0.00016444,91227.0,91211.0,0.010968]
[1767486976215,0.00853664,91223.0,91208.0,0.09340444]
[1767486976416,0.10800121,91220.0,91208.0,0.09340444]
[1767486976611,0.09946457,91218.0,91208.0,0.00016444]
[1767486976810,0.10781525,91215.0,91200.0,0.09324]
[1767486977022,0.10781525,91213.0,91200.0,0.09324]
[1767486977411,0.11878325,91213.0,91200.0,0.09324]
[1767486977914,0.010968,91216.0,91200.0,0.09324]
[1767486979020,0.010968,91216.0,91199.0,0.00219302]
[1767486979521,0.10751076,91215.0,91199.0,0.00219302]
[1767486980321,0.010968,91214.0,91199.0,0.00219302]
[1767486980521,0.11043257,91212.0,91199.0,0.00219302]
[1767486981119,0.010968,91210.0,91199.0,0.00219302]
[1767486982328,0.10707299,91212.0,91199.0,0.00219302]
[1767486982517,0.10707299,91209.0,91199.0,0.00219302]
[1767486982726,0.010968,91208.0,91199.0,0.00219302]
[1767486983124,0.010969,91205.0,91199.0,0.00219302]
[1767486983426,0.11789391,91208.0,91193.0,0.09324]
[1767486983828,0.1046915,91207.0,91193.0,0.09324]
[1767486984826,0.10462728,91203.0,91193.0,0.09324]
[1767486985027,0.09946457,91203.0,91193.0,0.09324]
[1767486985229,0.09946457,91203.0,91186.0,0.010971]
[1767486985929,0.09946457,91203.0,91188.0,0.010971]
[1767486986633,0.09946457,91203.0,91185.0,0.010971]
[1767486987332,0.010969,91202.0,91185.0,0.010971]
[1767486987533,0.09324,91208.0,91178.0,0.09001186]
[1767486987534,0.11532864,91199.0,91178.0,0.10439063]
[1767486987726,0.09946457,91197.0,91183.0,0.010971]
[1767486988033,0.10435864,91197.0,91183.0,0.010971]
[1767486989129,0.10435864,91197.0,91180.0,0.010972]
[1767486989433,0.09946457,91197.0,91178.0,0.01437877]
[1767486990534,0.09211599,91196.0,91182.0,0.010971]
[1767486991330,0.00016444,91210.0,91193.0,0.01301427]
[1767486991526,0.09949536,91205.0,91181.0,0.01252815]
[1767486991727,0.09949536,91205.0,91183.0,0.01252815]
[1767486991922,0.09324,91209.0,91190.0,0.09789285]
[1767486992220,0.09324,91212.0,91203.0,0.010969]
[1767486992426,0.09949536,91218.0,91203.0,0.010969]
[1767486992738,0.19273536,91217.0,91199.0,0.11979531]
[1767486993034,0.19273536,91217.0,91203.0,0.010969]
[1767486995038,0.00016444,91219.0,91206.0,0.010969]
[1767486996341,0.00016444,91219.0,91202.0,0.02349715]
[1767486996536,0.00016444,91219.0,91209.0,0.08576993]
[1767486997627,0.00016444,91219.0,91202.0,0.02349715]
[1767486997833,0.00016444,91219.0,91209.0,0.08576993]
[1767487000635,0.010967,91216.0,91201.0,0.00016444]
[1767487000834,0.010968,91211.0,91201.0,0.00016444]
[1767487003447,0.010968,91209.0,91201.0,0.00016444]
[1767487005247,0.11046536,91199.0,91182.0,0.09324]
[1767487005452,0.11046536,91199.0,91189.0,0.08576993]
[1767487006146,0.01097,91198.0,91189.0,0.08576993]
[1767487006339,0.09949536,91199.0,91189.0,0.08576993]
[1767487006340,0.00016444,91203.0,91189.0,0.08576993]
[1767487007241,0.00016444,91203.0,91183.0,0.010971]
[1767487007242,0.09949536,91202.0,91183.0,0.010971]
[1767487007442,0.09949536,91200.0,91179.0,0.010972]
[1767487007746,0.01113344,91203.0,91190.0,0.18366278]
[1767487007942,0.00016444,91203.0,91193.0,0.08576993]
[1767487008146,0.03111409,91203.0,91180.0,0.01252815]
[1767487008452,0.03094965,91201.0,91190.0,0.08576993]
[1767487008649,0.01097,91196.0,91190.0,9.3e-07]
[1767487008956,0.01097,91196.0,91186.0,0.08576993]
[1767487009542,0.01097,91193.0,91186.0,0.08576993]
[1767487009744,0.01097,91193.0,91183.0,0.08576993]
[1767487009944,0.01097,91193.0,91180.0,0.19619093]
[1767487010649,0.01097,91193.0,91181.0,0.09789285]
[1767487011048,0.02273876,91193.0,91180.0,0.09829808]
[1767487011243,0.010971,91191.0,91180.0,0.09829808]
[1767487011651,0.010971,91191.0,91180.0,0.08576993]
[1767487015861,0.01097,91194.0,91181.0,0.09789285]
[1767487018862,0.01097,91192.0,91181.0,0.09789285]
[1767487019563,0.010971,91188.0,91175.0,0.09789285]
[1767487019766,0.01097,91191.0,91175.0,0.09789285]
[1767487020258,0.010971,91189.0,91180.0,0.08576993]
[1767487021466,0.01097,91192.0,91180.0,0.08576993]
[1767487021762,0.010971,91189.0,91175.0,0.09789285]
[1767487021966,0.010971,91189.0,91179.0,0.08576993]
[1767487022165,0.010971,91189.0,91175.0,0.09789285]
[1767487022348,0.00982791,91192.0,91175.0,0.09789285]
[1767487022658,0.010972,91177.0,91169.0,0.00219374]
[1767487022860,0.010973,91173.0,91169.0,7.4e-07]
[1767487023468,0.010973,91173.0,91161.0,0.09983941]
[1767487023962,0.00962621,91180.0,91160.0,0.08576993]
[1767487023963,0.00945557,91175.0,91160.0,0.08576993]
[1767487024150,0.010973,91166.0,91153.0,0.10992647]
[1767487024651,0.010973,91173.0,91154.0,0.01668647]
[1767487024856,0.01113644,91182.0,91164.0,0.01668647]
[1767487025063,0.010972,91180.0,91170.0,0.08576993]
[1767487025464,9.812e-05,91181.0,91171.0,0.01668647]
[1767487025963,9.812e-05,91181.0,91172.0,0.09983941]
[1767487026351,9.812e-05,91181.0,91173.0,0.01668647]
[1767487026664,0.00016444,91182.0,91175.0,0.01668647]
[1767487026857,0.09328,91186.0,91175.0,0.01668647]
[1767487027053,0.01175059,91207.0,91185.0,0.11652588]
[1767487027257,0.09328,91206.0,91190.0,9.3e-07]
[1767487027566,0.01097,91197.0,91190.0,9.3e-07]
[1767487027861,0.00016453,91203.0,91187.0,0.08576993]
[1767487028063,0.00016453,91203.0,91190.0,0.08576993]
[1767487028265,0.00016453,91203.0,91185.0,0.11652588]
[1767487028659,0.01097,91194.0,91185.0,0.11652588]
[1767487029260,0.01097,91198.0,91185.0,0.11652588]
[1767487029453,0.01097,91195.0,91188.0,0.08576993]
[1767487029659,0.01097,91195.0,91185.0,0.20229581]
[1767487030368,0.01097,91195.0,91185.0,0.18560934]
[1767487030569,0.01097,91195.0,91185.0,0.09983941]
[1767487031160,0.02536258,91202.0,91184.0,0.00016453]
[1767487031359,0.01439358,91202.0,91184.0,0.00016453]
[1767487031665,0.01097,91191.0,91184.0,0.00016453]
[1767487031861,0.01097,91191.0,91184.0,5.3e-07]
[1767487032758,0.00219302,91199.0,91184.0,5.3e-07]
[1767487033161,0.01097,91195.0,91184.0,5.3e-07]
[1767487033360,0.09328,91196.0,91188.0,0.11652588]
[1767487033561,0.09328,91196.0,91186.0,0.08576993]
[1767487033970,0.09328,91196.0,91188.0,0.11652588]
[1767487034156,0.00219302,91199.0,91188.0,0.11652588]
[1767487034470,0.00219302,91199.0,91189.0,0.08576993]
[1767487036373,0.01097,91198.0,91189.0,0.08576993]
[1767487037569,0.01097,91196.0,91184.0,5.3e-07]
[1767487037770,0.01097,91193.0,91184.0,5.3e-07]
[1767487037972,0.01616488,91197.0,91184.0,5.3e-07]
[1767487038275,0.010971,91187.0,91184.0,5.3e-07]
[1767487038477,0.010971,91187.0,91173.0,0.01668647]
[1767487038777,0.010971,91187.0,91177.0,0.08576993]
[1767487039480,0.010971,91191.0,91177.0,0.08576993]
[1767487039671,0.010971,91189.0,91180.0,0.08576993]
[1767487039869,0.010971,91187.0,91180.0,0.08576993]
[1767487040675,0.010971,91187.0,91177.0,0.08576993]
[1767487041382,0.09320499,91197.0,91178.0,0.01668647]
[1767487041573,0.01097,91193.0,91180.0,0.1024564]
[1767487041773,0.00219302,91199.0,91181.0,0.01668647]
[1767487042374,0.00219302,91199.0,91189.0,0.08576993]
[1767487042575,0.00219302,91199.0,91185.0,0.01668647]
[1767487042576,0.01097,91198.0,91185.0,0.01668647]
[1767487042785,0.01097,91198.0,91189.0,0.08576993]
[1767487043786,0.01097,91198.0,91185.0,0.01668647]
[1767487045080,0.01097,91195.0,91183.0,0.09983941]
[1767487046082,0.01097,91195.0,91184.0,0.01668647]
[1767487046479,0.01316302,91199.0,91187.0,0.01668647]
[1767487047189,0.01316302,91199.0,91186.0,0.09983941]
[1767487047682,0.00016453,91203.0,91197.0,0.01668647]
[1767487047885,0.09328,91210.0,91207.0,9.3e-07]
[1767487048094,0.09328,91216.0,91204.0,0.01668647]
[1767487048279,0.09328,91216.0,91204.0,0.11652588]
[1767487048485,0.09328,91216.0,91207.0,0.11652588]
[1767487048981,0.104247,91216.0,91207.0,0.11652588]
[1767487049181,0.104247,91216.0,91207.0,0.09983941]
[1767487053000,0.104247,91216.0,91202.0,0.00016453]
[1767487053207,0.104247,91216.0,91202.0,0.11814858]
[1767487053506,0.104247,91216.0,91203.0,0.01906741]
[1767487053696,0.010968,91214.0,91203.0,0.01906741]
[1767487053895,0.010968,91214.0,91203.0,0.11798405]
[1767487054090,0.010968,91214.0,91204.0,0.11798405]
[1767487056709,0.09328,91216.0,91204.0,0.11798405]
[1767487059611,0.010968,91215.0,91204.0,0.11798405]
[1767487061309,0.09324,91219.0,91202.0,0.00016453]
[1767487061810,0.01981117,91211.0,91190.0,0.09328]
[1767487062113,0.09204697,91212.0,91190.0,0.09328]
[1767487063415,0.010968,91210.0,91191.0,0.11798405]
[1767487063713,0.010968,91210.0,91193.0,0.01906741]
[1767487064806,0.09204697,91212.0,91193.0,0.01906741]
[1767487065206,0.11185814,91212.0,91193.0,0.01906741]
[1767487065415,0.09204697,91212.0,91193.0,0.01906741]
[1767487065915,0.010968,91208.0,91193.0,0.01906741]
[1767487066416,0.010968,91208.0,91194.0,0.01906741]
[1767487067312,0.010968,91210.0,91196.0,0.01906741]
[1767487067522,0.010968,91214.0,91196.0,0.01906741]
[1767487067709,0.010968,91214.0,91197.0,0.01906741]
[1767487068010,0.010968,91211.0,91197.0,0.01906741]
[1767487071410,0.010968,91211.0,91200.0,0.01906741]
[1767487073905,0.010968,91213.0,91200.0,0.01906741]
[1767487074105,0.010968,91211.0,91200.0,0.01906741]
[1767487075620,0.09204697,91211.0,91193.0,0.01906741]
[1767487075821,0.010969,91205.0,91192.0,0.09324]
[1767487076221,0.010969,91205.0,91190.0,0.01906741]
[1767487076424,0.010969,91205.0,91192.0,0.01906741]
[1767487077719,0.010969,91205.0,91191.0,0.09324]
[1767487077925,0.010969,91205.0,91191.0,0.11230741]
[1767487078126,0.010969,91205.0,91192.0,0.01906741]
[1767487079423,0.010969,91203.0,91192.0,0.01906741]
[1767487079625,0.010969,91203.0,91191.0,0.09324]
[1767487080924,0.010969,91206.0,91192.0,0.02110571]
[1767487081330,0.010969,91202.0,91191.0,0.09324]
[1767487082832,0.010969,91202.0,91191.0,0.09314]
[1767487083422,0.010969,91206.0,91191.0,0.11424571]
[1767487083630,0.11913524,91207.0,91191.0,0.09314]
[1767487083823,0.010969,91204.0,91191.0,0.11424571]
[1767487085729,0.02024937,91194.0,91187.0,0.09730101]
[1767487085935,0.11913524,91190.0,91172.0,0.09324]
[1767487086525,0.010971,91189.0,91172.0,0.09324]
[1767487086726,0.02024937,91194.0,91173.0,0.09862356]
[1767487087024,0.19212587,91196.0,91173.0,0.09862356]
[1767487087432,0.03121937,91192.0,91173.0,0.09862356]
[1767487087832,0.01097,91192.0,91174.0,0.02110571]
[1767487088226,0.02024937,91189.0,91172.0,0.09324]
[1767487088636,0.11913524,91189.0,91172.0,0.09324]
[1767487089428,0.010971,91186.0,91172.0,0.09324]
[1767487089823,0.010971,91184.0,91169.0,0.02329945]
[1767487090030,0.010972,91180.0,91169.0,0.00219374]
[1767487090230,0.13010624,91184.0,91169.0,0.00219374]
[1767487090629,0.010972,91182.0,91169.0,0.00219374]
[1767487091734,0.09888587,91183.0,91169.0,0.00219374]
[1767487091932,0.010972,91174.0,91169.0,7.4e-07]
[1767487092239,0.010972,91180.0,91169.0,7.4e-07]
[1767487093041,0.01113653,91181.0,91169.0,7.4e-07]
[1767487093336,0.00016453,91181.0,91169.0,7.4e-07]
[1767487093743,0.00016453,91181.0,91144.0,0.010976]
[1767487093744,0.02024937,91165.0,91144.0,0.010976]
[1767487093935,0.09324,91175.0,91166.0,0.09862356]
[1767487094240,0.09324,91175.0,91159.0,0.09862356]
[1767487097238,0.104212,91175.0,91159.0,0.09862356]
[1767487098135,0.09324,91175.0,91159.0,0.09862356]
[1767487098444,0.09324,91175.0,91159.0,0.11972927]
[1767487098642,0.09324,91175.0,91164.0,0.02110571]
[1767487098834,0.00016453,91180.0,91165.0,0.11972927]
[1767487099030,0.09344453,91180.0,91166.0,0.02110571]
[1767487101040,0.09344453,91180.0,91165.0,0.09862356]
[1767487104056,0.02024937,91179.0,91161.0,0.010974]
[1767487104246,0.010973,91171.0,91154.0,0.09328]
[1767487104839,0.02024937,91166.0,91155.0,0.09328]
[1767487105043,0.010975,91152.0,91143.0,0.09328]
[1767487105242,0.11913524,91153.0,91143.0,0.09328]
[1767487105448,0.11913524,91153.0,91136.0,0.09328]
[1767487105651,0.09888587,91153.0,91137.0,0.010977]
[1767487106444,0.09888587,91153.0,91134.0,0.03208271]
[1767487106643,0.09888587,91153.0,91135.0,0.09328]
[1767487107151,0.09888587,91153.0,91134.0,0.03208271]
[1767487107454,0.10986087,91153.0,91135.0,0.09328]
[1767487107840,0.010976,91147.0,91130.0,0.02110571]
[1767487108040,0.09888587,91153.0,91130.0,0.09328]
[1767487108041,0.010976,91145.0,91130.0,0.09328]
[1767487108252,0.13011124,91142.0,91130.0,0.09328]
[1767487108439,0.13011124,91142.0,91124.0,0.00013026]
[1767487108440,0.03122637,91140.0,91124.0,0.00013026]
[1767487108645,0.11913524,91139.0,91124.0,0.00013026]
[1767487108956,0.02024937,91134.0,91124.0,2.6e-07]
[1767487109249,0.09888587,91132.0,91124.0,2.6e-07]
[1767487109453,0.11913524,91131.0,91124.0,2.6e-07]
[1767487109847,9.45e-05,91130.0,91124.0,2.6e-07]
[1767487113957,0.09328,91136.0,91124.0,2.6e-07]
[1767487115052,4.799e-05,91135.0,91124.0,2.6e-07]
[1767487116446,0.010975,91151.0,91132.0,0.03071538]
[1767487116757,0.20511802,91152.0,91132.0,0.03071538]
[1767487117361,0.11179802,91152.0,91140.0,0.08593472]
[1767487117750,0.09332,91154.0,91140.0,0.08593472]
[1767487117946,0.03043097,91152.0,91110.0,0.01098]
[1767487118150,0.01945597,91136.0,91119.0,0.010979]
[1767487118345,0.01945597,91134.0,91119.0,0.010979]
[1767487118666,0.01945597,91134.0,91120.0,0.08593472]
[1767487119161,0.01945597,91130.0,91116.0,0.09332]
[1767487119350,0.01945597,91129.0,91116.0,0.09332]
[1767487119861,0.01945597,91128.0,91110.0,0.09691472]
[1767487120062,0.01945597,91128.0,91110.0,0.19023472]
[1767487120453,0.09234205,91123.0,91109.0,0.00219518]
[1767487120660,0.01945597,91116.0,91109.0,0.00219518]
[1767487120960,0.03043497,91121.0,91109.0,0.00170169]
[1767487121152,0.010979,91121.0,91109.0,0.00170169]
[1767487122056,0.01945597,91120.0,91109.0,6.9e-07]
[1767487122366,0.01945597,91120.0,91091.0,0.09332]
[1767487122367,0.01945597,91111.0,91091.0,0.09332]
[1767487122556,0.0196206,91111.0,91091.0,0.09332]
[1767487122751,0.0196206,91111.0,91093.0,0.060982]
[1767487123055,0.0196206,91111.0,91100.0,0.08593472]
[1767487123056,0.00016463,91111.0,91100.0,0.08593472]
[1767487124766,0.10539069,91110.0,91093.0,0.05]
[1767487124967,0.09332,91109.0,91093.0,0.05]
[1767487125156,0.09332,91109.0,91093.0,0.060982]
[1767487125355,0.09332,91109.0,91095.0,0.010982]
[1767487125556,0.09332,91109.0,91099.0,0.08593472]
[1767487126051,0.09332,91109.0,91095.0,0.010982]
[1767487126257,0.09332,91109.0,91099.0,0.08593472]
[1767487126861,0.09332,91109.0,91093.0,0.05]
[1767487127270,0.01945597,91108.0,91093.0,0.05]
[1767487127563,0.01945597,91107.0,91093.0,0.05]
[1767487127767,0.01945597,91105.0,91093.0,0.05]
[1767487128259,0.09332,91109.0,91093.0,0.05]
[1767487128463,0.09332,91109.0,91094.0,0.010982]
[1767487128657,0.09332,91109.0,91099.0,0.08593472]
[1767487129257,0.09332,91109.0,91093.0,0.05]
[1767487129457,0.09332,91109.0,91093.0,0.060982]
[1767487130970,0.00016463,91111.0,91100.0,0.01973838]
[1767487131152,0.09836786,91163.0,91110.0,0.08593472]
[1767487131153,0.010978,91126.0,91110.0,0.08593472]
[1767487131354,0.09332,91132.0,91116.0,0.08593472]
[1767487131554,0.09332,91132.0,91120.0,0.08593472]
[1767487131760,0.010977,91139.0,91118.0,0.11086777]
[1767487131960,0.09332,91138.0,91121.0,0.010979]
[1767487133670,0.010977,91137.0,91120.0,0.08609935]
[1767487134461,0.010977,91137.0,91121.0,0.010979]
[1767487134663,0.09332,91138.0,91121.0,0.010979]
[1767487136173,0.11277597,91138.0,91121.0,0.010979]
[1767487136378,0.01945597,91138.0,91121.0,0.010979]
[1767487137186,0.01945597,91137.0,91121.0,0.010979]
[1767487137386,0.01945597,91137.0,91120.0,0.00016463]
[1767487137681,0.01945597,91137.0,91120.0,0.08609935]
[1767487137894,0.03043297,91137.0,91120.0,0.08609935]
[1767487140476,0.00235909,91139.0,91127.0,0.10412841]
[1767487140686,0.09332,91136.0,91124.0,0.09478136]
[1767487141093,0.010978,91127.0,91120.0,0.00016463]
[1767487142281,0.01952468,91119.0,91102.0,0.010981]
[1767487142483,0.01952468,91117.0,91102.0,0.010981]
[1767487142788,0.09143022,91118.0,91103.0,0.1638927]
[1767487143001,0.010979,91119.0,91108.0,0.08593472]
[1767487143182,0.01952468,91122.0,91104.0,0.010981]
[1767487143580,0.01114363,91123.0,91105.0,0.01819369]
[1767487143779,0.01114363,91123.0,91110.0,0.08593472]
[1767487145595,0.010979,91121.0,91110.0,0.08593472]
[1767487145889,0.01952468,91115.0,91101.0,0.09332]
[1767487146292,0.09143022,91116.0,91101.0,0.09332]
[1767487146484,0.09143022,91116.0,91100.0,0.08593472]
[1767487146795,0.03050368,91119.0,91101.0,0.010981]
[1767487147089,0.010979,91119.0,91101.0,0.02917469]
[1767487147284,0.010979,91119.0,91102.0,0.01819369]
[1767487148087,0.09143022,91122.0,91109.0,0.08593472]
[1767487149295,0.010979,91121.0,91109.0,0.08593472]
[1767487150894,0.010979,91121.0,91110.0,0.08593472]
[1767487152300,0.010979,91117.0,91110.0,0.08593472]
[1767487152501,0.010979,91117.0,91101.0,0.09478136]
[1767487153598,0.010979,91117.0,91100.0,0.08593472]
[1767487153899,0.010979,91117.0,91101.0,0.01819369]
[1767487154095,0.010979,91117.0,91098.0,0.104302]
[1767487154096,0.01114363,91123.0,91107.0,0.08593472]
[1767487154401,0.010979,91121.0,91105.0,0.01819369]
[1767487154994,0.010979,91119.0,91101.0,0.02917469]
[1767487155304,0.010979,91119.0,91101.0,0.01819369]
[1767487155503,0.010979,91117.0,91098.0,0.19908336]
[1767487155804,0.03050368,91117.0,91100.0,0.08593472]
[1767487156300,0.010979,91120.0,91101.0,0.01819369]
[1767487156601,0.010979,91120.0,91102.0,0.02917469]
[1767487156802,0.010979,91120.0,91103.0,0.01819369]
[1767487160105,0.010979,91120.0,91104.0,0.01819369]
[1767487161107,0.09332,91120.0,91112.0,0.11297505]
[1767487162402,0.09332,91120.0,91112.0,0.09478136]
[1767487162605,0.09332,91120.0,91110.0,0.08593472]
[1767487163509,0.09332,91131.0,91118.0,0.01819369]
[1767487163701,0.09332,91131.0,91119.0,0.01819369]
[1767487164203,0.09332,91131.0,91087.0,0.13621672]
[1767487164204,0.00219446,91139.0,91126.0,0.01819369]
[1767487164400,0.09332,91138.0,91129.0,0.08593472]
[1767487164800,0.00219446,91139.0,91129.0,0.08593472]
[1767487165005,0.09332,91140.0,91129.0,0.08593472]
[1767487165406,0.01952468,91154.0,91132.0,0.11297505]
[1767487165607,0.11284468,91153.0,91132.0,0.11297505]
[1767487166005,0.01952468,91152.0,91132.0,0.11297505]
[1767487166403,0.010976,91149.0,91132.0,0.11297505]
[1767487166603,0.09332,91148.0,91133.0,0.11297505]
[1767487169703,0.010976,91145.0,91130.0,0.08593472]
[1767487169911,0.01755337,91144.0,91130.0,0.08593472]
[1767487170306,0.09143022,91145.0,91130.0,0.08593472]
[1767487170811,0.11087337,91148.0,91130.0,0.08593472]
[1767487171614,0.01755337,91148.0,91130.0,0.08593472]
[1767487175009,0.010976,91144.0,91141.0,3.2e-07]
[1767487175209,0.010976,91147.0,91141.0,3.2e-07]
[1767487175717,0.09332,91149.0,91141.0,3.2e-07]
[1767487176018,0.09332,91149.0,91138.0,0.05850456]
[1767487177617,0.01805973,91148.0,91138.0,5.6e-07]
[1767487177819,0.010977,91141.0,91128.0,0.07800608]
[1767487178318,0.010977,91141.0,91128.0,0.09681332]
[1767487178619,0.010977,91141.0,91128.0,0.07800608]
[1767487179407,0.01805973,91140.0,91126.0,0.07800608]
[1767487179607,0.09332,91149.0,91126.0,0.07800608]
[1767487179806,0.010978,91131.0,91124.0,0.00016463]
[1767487180007,0.010978,91126.0,91112.0,0.19311709]
[1767487180219,0.01805973,91130.0,91112.0,0.19311709]
[1767487180618,0.010978,91127.0,91112.0,0.19311709]
[1767487180918,0.00016463,91129.0,91112.0,0.19311709]
[1767487181311,0.00016463,91129.0,91112.0,0.22290433]
[1767487181622,0.00016463,91129.0,91114.0,0.01880724]
[1767487181811,0.00016463,91129.0,91115.0,0.11860433]
[1767487182122,0.00016463,91129.0,91116.0,0.01880724]
[1767487184310,0.00016463,91129.0,91116.0,0.11860433]
[1767487184512,0.00016463,91129.0,91117.0,0.01880724]
[1767487184921,0.00016463,91129.0,91113.0,0.01880724]
[1767487185918,0.00016463,91129.0,91116.0,0.09979709]
[1767487186117,0.010978,91128.0,91116.0,0.09979709]
[1767487186324,0.010978,91128.0,91112.0,0.11212724]
[1767487186719,0.010978,91128.0,91113.0,0.01880724]
[1767487187628,0.010978,91126.0,91113.0,0.01880724]
[1767487189831,0.00016463,91129.0,91112.0,0.09332]
[1767487189832,0.010979,91124.0,91112.0,0.09332]
[1767487190023,0.010979,91122.0,91110.0,0.00016463]
[1767487190528,0.010978,91125.0,91110.0,0.00016463]
[1767487190823,0.010978,91128.0,91114.0,0.11860433]
[1767487191028,0.010978,91128.0,91115.0,0.01880724]
[1767487191722,0.010978,91128.0,91114.0,0.09979709]
[1767487192321,0.010978,91126.0,91113.0,0.07807876]
[1767487192829,0.010978,91126.0,91111.0,0.01880724]
[1767487193831,0.010978,91126.0,91112.0,0.01880724]
[1767487194129,0.01114263,91129.0,91115.0,0.01880724]
[1767487194331,0.010978,91127.0,91114.0,0.09979709]
[1767487195029,0.010978,91127.0,91115.0,0.01880724]
[1767487195931,0.010978,91127.0,91114.0,0.09979709]
[1767487196824,0.010978,91127.0,91111.0,0.01880724]
[1767487197533,0.010978,91127.0,91112.0,0.01880724]
[1767487197733,0.010978,91127.0,91118.0,0.05858825]
[1767487199839,0.010978,91125.0,91118.0,0.05858825]
[1767487201332,0.01904768,91128.0,91118.0,2.5e-07]
[1767487201535,0.01904768,91128.0,91109.0,5.7e-07]
[1767487201536,0.01904768,91125.0,91109.0,5.7e-07]
[1767487201837,0.010979,91117.0,91105.0,0.09332]
[1767487202038,0.11612877,91123.0,91105.0,0.09332]
[1767487202329,0.010979,91119.0,91105.0,0.09332]
[1767487202527,0.010979,91117.0,91105.0,0.09332]
[1767487202931,0.010979,91117.0,91105.0,0.11227578]
[1767487203528,0.01098,91112.0,91100.0,0.01895578]
[1767487203726,0.01904768,91121.0,91101.0,0.01895578]
[1767487204123,0.01904768,91121.0,91102.0,0.01895578]
[1767487204634,0.010979,91117.0,91102.0,0.01895578]
[1767487209845,0.01098,91115.0,91102.0,0.01895578]
[1767487210542,0.01904768,91121.0,91102.0,0.01895578]
[1767487210746,0.01904768,91120.0,91101.0,0.09743978]
[1767487211849,0.01098,91113.0,91098.0,0.09332]
[1767487212050,0.01904768,91115.0,91098.0,0.09332]
[1767487212242,0.010979,91116.0,91099.0,0.01895578]
[1767487212548,0.010979,91116.0,91100.0,0.01895578]
[1767487214044,0.01098,91114.0,91100.0,0.01895578]
[1767487214950,0.01098,91114.0,91099.0,0.09743978]
[1767487215248,0.27084,91140.0,91098.0,0.09332]
[1767487215249,0.010977,91137.0,91121.0,0.01895578]
[1767487215548,0.09551446,91139.0,91104.0,0.08591431]
[1767487215549,0.09551446,91139.0,91126.0,0.09743978]
[1767487216137,0.010977,91138.0,91126.0,0.09743978]
[1767487216540,0.010977,91138.0,91126.0,0.09837415]
[1767487216746,0.010977,91138.0,91127.0,0.09837415]
[1767487217352,0.09551446,91139.0,91127.0,0.09837415]
[1767487217651,0.09551446,91139.0,91128.0,0.0996488]
[1767487219253,0.09551446,91139.0,91128.0,0.09743978]
[1767487220341,0.10649146,91139.0,91128.0,0.09743978]
[1767487221353,0.09551446,91139.0,91128.0,0.0991172]
[1767487223557,0.09551446,91139.0,91128.0,0.09743978]
[1767487224448,0.00219446,91139.0,91129.0,0.00102875]
[1767487224654,0.00219446,91139.0,91130.0,0.09825908]
[1767487224958,0.00219446,91139.0,91131.0,0.0008193]
[1767487225144,0.00219446,91139.0,91131.0,0.09825908]
[1767487225343,0.00016463,91141.0,91131.0,0.09825908]
[1767487226159,0.00016463,91141.0,91133.0,0.09805357]
[1767487226355,0.010976,91148.0,91133.0,0.09805357]
[1767487226657,0.09332,91155.0,91144.0,0.09792693]
[1767487226848,0.010975,91155.0,91139.0,0.00048715]
[1767487227053,0.010975,91155.0,91141.0,0.09792693]
[1767487227254,0.01904768,91157.0,91137.0,0.00048715]
[1767487227462,0.010975,91152.0,91138.0,0.00016463]
[1767487228862,0.01113963,91156.0,91139.0,0.09743978]
[1767487229957,0.104294,91164.0,91144.0,0.09898652]
[1767487230254,0.010974,91162.0,91144.0,0.09898652]
[1767487231263,0.01113863,91162.0,91144.0,0.09898652]
[1767487231859,0.00016463,91162.0,91146.0,0.09748494]
[1767487232057,0.00016463,91162.0,91148.0,0.09748494]
[1767487234654,0.010973,91166.0,91148.0,0.09748494]
[1767487234865,0.09332,91168.0,91148.0,0.09748494]
[1767487235755,0.010976,91143.0,91138.0,6.3e-07]
[1767487235955,0.010975,91154.0,91138.0,0.09748557]
[1767487236454,0.010975,91152.0,91138.0,0.09748557]
[1767487236764,0.01955896,91157.0,91138.0,6.3e-07]
[1767487238365,0.010975,91153.0,91138.0,6.3e-07]
[1767487238757,0.010976,91146.0,91138.0,6.3e-07]
[1767487238952,0.010977,91141.0,91138.0,6.3e-07]
[1767487242068,0.010977,91137.0,91128.0,0.09748494]
[1767487244664,0.010977,91141.0,91128.0,0.09748494]
[1767487244869,0.010976,91145.0,91128.0,0.09748494]
[1767487245560,0.010976,91145.0,91130.0,0.08590996]
[1767487245761,0.09332,91147.0,91131.0,0.09748494]
[1767487247356,0.010976,91148.0,91131.0,0.09748494]
[1767487249766,0.01955896,91139.0,91123.0,0.00016463]
[1767487249954,0.010978,91132.0,91123.0,0.00016463]
[1767487251262,0.010977,91136.0,91123.0,0.00016463]
[1767487251463,0.010977,91139.0,91127.0,0.09748494]
[1767487251664,0.010977,91139.0,91130.0,0.08590996]
[1767487251853,0.104296,91142.0,91130.0,0.08590996]
[1767487252058,0.104296,91142.0,91127.0,0.09748494]
[1767487252254,0.010976,91145.0,91130.0,0.08590996]
[1767487252465,0.010976,91145.0,91131.0,0.09748494]
[1767487257572,0.09084223,91158.0,91131.0,0.09748494]
[1767487257772,0.09332,91151.0,91131.0,0.09748494]
[1767487260263,0.01114063,91149.0,91131.0,0.09748494]
[1767487260464,0.08590996,91160.0,91131.0,0.09748494]
[1767487260465,0.09332,91159.0,91140.0,0.08820532]